{"text_format":"1","workbook":"xlsx","n_sheets":2,"sheets":["登録","一覧"],"not_rendered":{"charts":1,"images":0,"macros":1,"external_links":0,"defined_names":1,"comments":0,"pivot_tables":0},"unopened":[],"bounds":{"document_bytes":16777216,"sheet_cells":100000,"rows_first":2000,"rows_last":500,"rows_between":2000,"halvings":0,"cell_chars":16384,"cell_head_chars":4096},"cells_cut":0,"cells_raw":0,"read":"whole","date_system":"1900"}

{"sheet":"登録","index":0,"n_rows":6,"n_cols":1,"rows_kept":6,"cut":false,"hidden":false,"merged":[[0,0,0,1]]}
["計測値入力表"]
[]
["収縮期血圧"]
["拡張期血圧"]
["体重"]
["身長（初回のみ入力）"]

{"sheet":"一覧","index":1,"n_rows":298,"n_cols":7,"rows_kept":298,"cut":false,"hidden":false,"merged":[[0,1,0,5]]}
[null,"検査値一覧"]
[]
[null,"計測日","収縮期血圧","拡張期血圧","体重(Kg)","身長(cm)","BMI"]
[null,null,null,null,null,null,{"$f":"E4/(F4*F4/10000)","v":{"$error":"#DIV/0!"}}]
[null,null,null,null,null,{"$f":"$F$4","v":0},{"$f":"E5/(F5*F5/10000)","v":{"$error":"#DIV/0!"}}]
[null,null,null,null,null,0,{"$error":"#DIV/0!"}]
[null,null,null,null,null,0,{"$error":"#DIV/0!"}]
[null,null,null,null,null,0,{"$error":"#DIV/0!"}]
[null,null,null,null,null,0,{"$error":"#DIV/0!"}]
[null,null,null,null,null,0,{"$f":"E10/(F10*F10/10000)","v":{"$error":"#DIV/0!"}}]
[null,null,null,null,null,0,{"$error":"#DIV/0!"}]
[null,null,null,null,null,0,{"$error":"#DIV/0!"}]
[null,null,null,null,null,0,{"$error":"#DIV/0!"}]
[null,null,null,null,null,0,{"$error":"#DIV/0!"}]
[null,null,null,null,null,0,{"$error":"#DIV/0!"}]
[null,null,null,null,null,0,{"$error":"#DIV/0!"}]
[null,null,null,null,null,0,{"$error":"#DIV/0!"}]
[null,null,null,null,null,0,{"$error":"#DIV/0!"}]
[null,null,null,null,null,0,{"$error":"#DIV/0!"}]
[null,null,null,null,null,0,{"$error":"#DIV/0!"}]
[null,null,null,null,null,0,{"$error":"#DIV/0!"}]
[null,null,null,null,null,0,{"$error":"#DIV/0!"}]
[null,null,null,null,null,0,{"$error":"#DIV/0!"}]
[null,null,null,null,null,0,{"$error":"#DIV/0!"}]
[null,null,null,null,null,0,{"$error":"#DIV/0!"}]
[null,null,null,null,null,0,{"$error":"#DIV/0!"}]
[null,null,null,null,null,0,{"$error":"#DIV/0!"}]
[null,null,null,null,null,0,{"$error":"#DIV/0!"}]
[null,null,null,null,null,0,{"$error":"#DIV/0!"}]
[null,null,null,null,null,0,{"$error":"#DIV/0!"}]
[null,null,null,null,null,0,{"$error":"#DIV/0!"}]
[null,null,null,null,null,0,{"$error":"#DIV/0!"}]
[null,null,null,null,null,0,{"$error":"#DIV/0!"}]
[null,null,null,null,null,0,{"$error":"#DIV/0!"}]
[null,null,null,null,null,0,{"$error":"#DIV/0!"}]
[null,null,null,null,null,0,{"$error":"#DIV/0!"}]
[null,null,null,null,null,0,{"$error":"#DIV/0!"}]
[null,null,null,null,null,0,{"$error":"#DIV/0!"}]
[null,null,null,null,null,0,{"$error":"#DIV/0!"}]
[null,null,null,null,null,0,{"$error":"#DIV/0!"}]
[null,null,null,null,null,0,{"$error":"#DIV/0!"}]
[null,null,null,null,null,0,{"$error":"#DIV/0!"}]
[null,null,null,null,null,0,{"$error":"#DIV/0!"}]
[null,null,null,null,null,0,{"$error":"#DIV/0!"}]
[null,null,null,null,null,0,{"$error":"#DIV/0!"}]
[null,null,null,null,null,0,{"$error":"#DIV/0!"}]
[null,null,null,null,null,0,{"$error":"#DIV/0!"}]
[null,null,null,null,null,0,{"$error":"#DIV/0!"}]
[null,null,null,null,null,0,{"$error":"#DIV/0!"}]
[null,null,null,null,null,0,{"$error":"#DIV/0!"}]
[null,null,null,null,null,0,{"$error":"#DIV/0!"}]
[null,null,null,null,null,0,{"$error":"#DIV/0!"}]
[null,null,null,null,null,0,{"$error":"#DIV/0!"}]
[null,null,null,null,null,0,{"$error":"#DIV/0!"}]
[null,null,null,null,null,0,{"$error":"#DIV/0!"}]
[null,null,null,null,null,0,{"$error":"#DIV/0!"}]
[null,null,null,null,null,0,{"$error":"#DIV/0!"}]
[null,null,null,null,null,0,{"$error":"#DIV/0!"}]
[null,null,null,null,null,0,{"$error":"#DIV/0!"}]
[null,null,null,null,null,0,{"$error":"#DIV/0!"}]
[null,null,null,null,null,0,{"$error":"#DIV/0!"}]
[null,null,null,null,null,0,{"$error":"#DIV/0!"}]
[null,null,null,null,null,0,{"$error":"#DIV/0!"}]
[null,null,null,null,null,0,{"$error":"#DIV/0!"}]
[null,null,null,null,null,0,{"$error":"#DIV/0!"}]
[null,null,null,null,null,0,{"$error":"#DIV/0!"}]
[null,null,null,null,null,0,{"$error":"#DIV/0!"}]
[null,null,null,null,null,0,{"$error":"#DIV/0!"}]
[null,null,null,null,null,0,{"$f":"E69/(F69*F69/10000)","v":{"$error":"#DIV/0!"}}]
[null,null,null,null,null,{"$f":"$F$4","v":0},{"$error":"#DIV/0!"}]
[null,null,null,null,null,0,{"$error":"#DIV/0!"}]
[null,null,null,null,null,0,{"$error":"#DIV/0!"}]
[null,null,null,null,null,0,{"$error":"#DIV/0!"}]
[null,null,null,null,null,0,{"$error":"#DIV/0!"}]
[null,null,null,null,null,0,{"$error":"#DIV/0!"}]
[null,null,null,null,null,0,{"$error":"#DIV/0!"}]
[null,null,null,null,null,0,{"$error":"#DIV/0!"}]
[null,null,null,null,null,0,{"$error":"#DIV/0!"}]
[null,null,null,null,null,0,{"$error":"#DIV/0!"}]
[null,null,null,null,null,0,{"$error":"#DIV/0!"}]
[null,null,null,null,null,0,{"$error":"#DIV/0!"}]
[null,null,null,null,null,0,{"$error":"#DIV/0!"}]
[null,null,null,null,null,0,{"$error":"#DIV/0!"}]
[null,null,null,null,null,0,{"$error":"#DIV/0!"}]
[null,null,null,null,null,0,{"$error":"#DIV/0!"}]
[null,null,null,null,null,0,{"$error":"#DIV/0!"}]
[null,null,null,null,null,0,{"$error":"#DIV/0!"}]
[null,null,null,null,null,0,{"$error":"#DIV/0!"}]
[null,null,null,null,null,0,{"$error":"#DIV/0!"}]
[null,null,null,null,null,0,{"$error":"#DIV/0!"}]
[null,null,null,null,null,0,{"$error":"#DIV/0!"}]
[null,null,null,null,null,0,{"$error":"#DIV/0!"}]
[null,null,null,null,null,0,{"$error":"#DIV/0!"}]
[null,null,null,null,null,0,{"$error":"#DIV/0!"}]
[null,null,null,null,null,0,{"$error":"#DIV/0!"}]
[null,null,null,null,null,0,{"$error":"#DIV/0!"}]
[null,null,null,null,null,0,{"$error":"#DIV/0!"}]
[null,null,null,null,null,0,{"$error":"#DIV/0!"}]
[null,null,null,null,null,0,{"$error":"#DIV/0!"}]
[null,null,null,null,null,0,{"$error":"#DIV/0!"}]
[null,null,null,null,null,0,{"$error":"#DIV/0!"}]
[null,null,null,null,null,0,{"$error":"#DIV/0!"}]
[null,null,null,null,null,0,{"$error":"#DIV/0!"}]
[null,null,null,null,null,0,{"$error":"#DIV/0!"}]
[null,null,null,null,null,0,{"$error":"#DIV/0!"}]
[null,null,null,null,null,0,{"$error":"#DIV/0!"}]
[null,null,null,null,null,0,{"$error":"#DIV/0!"}]
[null,null,null,null,null,0,{"$error":"#DIV/0!"}]
[null,null,null,null,null,0,{"$error":"#DIV/0!"}]
[null,null,null,null,null,0,{"$error":"#DIV/0!"}]
[null,null,null,null,null,0,{"$error":"#DIV/0!"}]
[null,null,null,null,null,0,{"$error":"#DIV/0!"}]
[null,null,null,null,null,0,{"$error":"#DIV/0!"}]
[null,null,null,null,null,0,{"$error":"#DIV/0!"}]
[null,null,null,null,null,0,{"$error":"#DIV/0!"}]
[null,null,null,null,null,0,{"$error":"#DIV/0!"}]
[null,null,null,null,null,0,{"$error":"#DIV/0!"}]
[null,null,null,null,null,0,{"$error":"#DIV/0!"}]
[null,null,null,null,null,0,{"$error":"#DIV/0!"}]
[null,null,null,null,null,0,{"$error":"#DIV/0!"}]
[null,null,null,null,null,0,{"$error":"#DIV/0!"}]
[null,null,null,null,null,0,{"$error":"#DIV/0!"}]
[null,null,null,null,null,0,{"$error":"#DIV/0!"}]
[null,null,null,null,null,0,{"$error":"#DIV/0!"}]
[null,null,null,null,null,0,{"$error":"#DIV/0!"}]
[null,null,null,null,null,0,{"$error":"#DIV/0!"}]
[null,null,null,null,null,0,{"$error":"#DIV/0!"}]
[null,null,null,null,null,0,{"$error":"#DIV/0!"}]
[null,null,null,null,null,0,{"$error":"#DIV/0!"}]
[null,null,null,null,null,0,{"$error":"#DIV/0!"}]
[null,null,null,null,null,0,{"$error":"#DIV/0!"}]
[null,null,null,null,null,0,{"$error":"#DIV/0!"}]
[null,null,null,null,null,0,{"$f":"E133/(F133*F133/10000)","v":{"$error":"#DIV/0!"}}]
[null,null,null,null,null,{"$f":"$F$4","v":0},{"$error":"#DIV/0!"}]
[null,null,null,null,null,0,{"$error":"#DIV/0!"}]
[null,null,null,null,null,0,{"$error":"#DIV/0!"}]
[null,null,null,null,null,0,{"$error":"#DIV/0!"}]
[null,null,null,null,null,0,{"$error":"#DIV/0!"}]
[null,null,null,null,null,0,{"$error":"#DIV/0!"}]
[null,null,null,null,null,0,{"$error":"#DIV/0!"}]
[null,null,null,null,null,0,{"$error":"#DIV/0!"}]
[null,null,null,null,null,0,{"$error":"#DIV/0!"}]
[null,null,null,null,null,0,{"$error":"#DIV/0!"}]
[null,null,null,null,null,0,{"$error":"#DIV/0!"}]
[null,null,null,null,null,0,{"$error":"#DIV/0!"}]
[null,null,null,null,null,0,{"$error":"#DIV/0!"}]
[null,null,null,null,null,0,{"$error":"#DIV/0!"}]
[null,null,null,null,null,0,{"$error":"#DIV/0!"}]
[null,null,null,null,null,0,{"$error":"#DIV/0!"}]
[null,null,null,null,null,0,{"$error":"#DIV/0!"}]
[null,null,null,null,null,0,{"$error":"#DIV/0!"}]
[null,null,null,null,null,0,{"$error":"#DIV/0!"}]
[null,null,null,null,null,0,{"$error":"#DIV/0!"}]
[null,null,null,null,null,0,{"$error":"#DIV/0!"}]
[null,null,null,null,null,0,{"$error":"#DIV/0!"}]
[null,null,null,null,null,0,{"$error":"#DIV/0!"}]
[null,null,null,null,null,0,{"$error":"#DIV/0!"}]
[null,null,null,null,null,0,{"$error":"#DIV/0!"}]
[null,null,null,null,null,0,{"$error":"#DIV/0!"}]
[null,null,null,null,null,0,{"$error":"#DIV/0!"}]
[null,null,null,null,null,0,{"$error":"#DIV/0!"}]
[null,null,null,null,null,0,{"$error":"#DIV/0!"}]
[null,null,null,null,null,0,{"$error":"#DIV/0!"}]
[null,null,null,null,null,0,{"$error":"#DIV/0!"}]
[null,null,null,null,null,0,{"$error":"#DIV/0!"}]
[null,null,null,null,null,0,{"$error":"#DIV/0!"}]
[null,null,null,null,null,0,{"$error":"#DIV/0!"}]
[null,null,null,null,null,0,{"$error":"#DIV/0!"}]
[null,null,null,null,null,0,{"$error":"#DIV/0!"}]
[null,null,null,null,null,0,{"$error":"#DIV/0!"}]
[null,null,null,null,null,0,{"$error":"#DIV/0!"}]
[null,null,null,null,null,0,{"$error":"#DIV/0!"}]
[null,null,null,null,null,0,{"$error":"#DIV/0!"}]
[null,null,null,null,null,0,{"$error":"#DIV/0!"}]
[null,null,null,null,null,0,{"$error":"#DIV/0!"}]
[null,null,null,null,null,0,{"$error":"#DIV/0!"}]
[null,null,null,null,null,0,{"$error":"#DIV/0!"}]
[null,null,null,null,null,0,{"$error":"#DIV/0!"}]
[null,null,null,null,null,0,{"$error":"#DIV/0!"}]
[null,null,null,null,null,0,{"$error":"#DIV/0!"}]
[null,null,null,null,null,0,{"$error":"#DIV/0!"}]
[null,null,null,null,null,0,{"$error":"#DIV/0!"}]
[null,null,null,null,null,0,{"$error":"#DIV/0!"}]
[null,null,null,null,null,0,{"$error":"#DIV/0!"}]
[null,null,null,null,null,0,{"$error":"#DIV/0!"}]
[null,null,null,null,null,0,{"$error":"#DIV/0!"}]
[null,null,null,null,null,0,{"$error":"#DIV/0!"}]
[null,null,null,null,null,0,{"$error":"#DIV/0!"}]
[null,null,null,null,null,0,{"$error":"#DIV/0!"}]
[null,null,null,null,null,0,{"$error":"#DIV/0!"}]
[null,null,null,null,null,0,{"$error":"#DIV/0!"}]
[null,null,null,null,null,0,{"$error":"#DIV/0!"}]
[null,null,null,null,null,0,{"$error":"#DIV/0!"}]
[null,null,null,null,null,0,{"$error":"#DIV/0!"}]
[null,null,null,null,null,0,{"$error":"#DIV/0!"}]
[null,null,null,null,null,0,{"$error":"#DIV/0!"}]
[null,null,null,null,null,0,{"$f":"E197/(F197*F197/10000)","v":{"$error":"#DIV/0!"}}]
[null,null,null,null,null,{"$f":"$F$4","v":0},{"$error":"#DIV/0!"}]
[null,null,null,null,null,0,{"$error":"#DIV/0!"}]
[null,null,null,null,null,0,{"$error":"#DIV/0!"}]
[null,null,null,null,null,0,{"$error":"#DIV/0!"}]
[null,null,null,null,null,0,{"$error":"#DIV/0!"}]
[null,null,null,null,null,0,{"$error":"#DIV/0!"}]
[null,null,null,null,null,0,{"$error":"#DIV/0!"}]
[null,null,null,null,null,0,{"$error":"#DIV/0!"}]
[null,null,null,null,null,0,{"$error":"#DIV/0!"}]
[null,null,null,null,null,0,{"$error":"#DIV/0!"}]
[null,null,null,null,null,0,{"$error":"#DIV/0!"}]
[null,null,null,null,null,0,{"$error":"#DIV/0!"}]
[null,null,null,null,null,0,{"$error":"#DIV/0!"}]
[null,null,null,null,null,0,{"$error":"#DIV/0!"}]
[null,null,null,null,null,0,{"$error":"#DIV/0!"}]
[null,null,null,null,null,0,{"$error":"#DIV/0!"}]
[null,null,null,null,null,0,{"$error":"#DIV/0!"}]
[null,null,null,null,null,0,{"$error":"#DIV/0!"}]
[null,null,null,null,null,0,{"$error":"#DIV/0!"}]
[null,null,null,null,null,0,{"$error":"#DIV/0!"}]
[null,null,null,null,null,0,{"$error":"#DIV/0!"}]
[null,null,null,null,null,0,{"$error":"#DIV/0!"}]
[null,null,null,null,null,0,{"$error":"#DIV/0!"}]
[null,null,null,null,null,0,{"$error":"#DIV/0!"}]
[null,null,null,null,null,0,{"$error":"#DIV/0!"}]
[null,null,null,null,null,0,{"$error":"#DIV/0!"}]
[null,null,null,null,null,0,{"$error":"#DIV/0!"}]
[null,null,null,null,null,0,{"$error":"#DIV/0!"}]
[null,null,null,null,null,0,{"$error":"#DIV/0!"}]
[null,null,null,null,null,0,{"$error":"#DIV/0!"}]
[null,null,null,null,null,0,{"$error":"#DIV/0!"}]
[null,null,null,null,null,0,{"$error":"#DIV/0!"}]
[null,null,null,null,null,0,{"$error":"#DIV/0!"}]
[null,null,null,null,null,0,{"$error":"#DIV/0!"}]
[null,null,null,null,null,0,{"$error":"#DIV/0!"}]
[null,null,null,null,null,0,{"$error":"#DIV/0!"}]
[null,null,null,null,null,0,{"$error":"#DIV/0!"}]
[null,null,null,null,null,0,{"$error":"#DIV/0!"}]
[null,null,null,null,null,0,{"$error":"#DIV/0!"}]
[null,null,null,null,null,0,{"$error":"#DIV/0!"}]
[null,null,null,null,null,0,{"$error":"#DIV/0!"}]
[null,null,null,null,null,0,{"$error":"#DIV/0!"}]
[null,null,null,null,null,0,{"$error":"#DIV/0!"}]
[null,null,null,null,null,0,{"$error":"#DIV/0!"}]
[null,null,null,null,null,0,{"$error":"#DIV/0!"}]
[null,null,null,null,null,0,{"$error":"#DIV/0!"}]
[null,null,null,null,null,0,{"$error":"#DIV/0!"}]
[null,null,null,null,null,0,{"$error":"#DIV/0!"}]
[null,null,null,null,null,0,{"$error":"#DIV/0!"}]
[null,null,null,null,null,0,{"$error":"#DIV/0!"}]
[null,null,null,null,null,0,{"$error":"#DIV/0!"}]
[null,null,null,null,null,0,{"$error":"#DIV/0!"}]
[null,null,null,null,null,0,{"$error":"#DIV/0!"}]
[null,null,null,null,null,0,{"$error":"#DIV/0!"}]
[null,null,null,null,null,0,{"$error":"#DIV/0!"}]
[null,null,null,null,null,0,{"$error":"#DIV/0!"}]
[null,null,null,null,null,0,{"$error":"#DIV/0!"}]
[null,null,null,null,null,0,{"$error":"#DIV/0!"}]
[null,null,null,null,null,0,{"$error":"#DIV/0!"}]
[null,null,null,null,null,0,{"$error":"#DIV/0!"}]
[null,null,null,null,null,0,{"$error":"#DIV/0!"}]
[null,null,null,null,null,0,{"$error":"#DIV/0!"}]
[null,null,null,null,null,0,{"$error":"#DIV/0!"}]
[null,null,null,null,null,0,{"$f":"E261/(F261*F261/10000)","v":{"$error":"#DIV/0!"}}]
[null,null,null,null,null,{"$f":"$F$4","v":0},{"$error":"#DIV/0!"}]
[null,null,null,null,null,0,{"$error":"#DIV/0!"}]
[null,null,null,null,null,0,{"$error":"#DIV/0!"}]
[null,null,null,null,null,0,{"$error":"#DIV/0!"}]
[null,null,null,null,null,0,{"$error":"#DIV/0!"}]
[null,null,null,null,null,0,{"$error":"#DIV/0!"}]
[null,null,null,null,null,0,{"$error":"#DIV/0!"}]
[null,null,null,null,null,0,{"$error":"#DIV/0!"}]
[null,null,null,null,null,0,{"$error":"#DIV/0!"}]
[null,null,null,null,null,0,{"$error":"#DIV/0!"}]
[null,null,null,null,null,0,{"$error":"#DIV/0!"}]
[null,null,null,null,null,0,{"$error":"#DIV/0!"}]
[null,null,null,null,null,0,{"$error":"#DIV/0!"}]
[null,null,null,null,null,0,{"$error":"#DIV/0!"}]
[null,null,null,null,null,0,{"$error":"#DIV/0!"}]
[null,null,null,null,null,0,{"$error":"#DIV/0!"}]
[null,null,null,null,null,0,{"$error":"#DIV/0!"}]
[null,null,null,null,null,0,{"$error":"#DIV/0!"}]
[null,null,null,null,null,0,{"$error":"#DIV/0!"}]
[null,null,null,null,null,0,{"$error":"#DIV/0!"}]
[null,null,null,null,null,0,{"$error":"#DIV/0!"}]
[null,null,null,null,null,0,{"$error":"#DIV/0!"}]
[null,null,null,null,null,0,{"$error":"#DIV/0!"}]
[null,null,null,null,null,0,{"$error":"#DIV/0!"}]
[null,null,null,null,null,0,{"$error":"#DIV/0!"}]
[null,null,null,null,null,0,{"$error":"#DIV/0!"}]
[null,null,null,null,null,0,{"$error":"#DIV/0!"}]
[null,null,null,null,null,0,{"$error":"#DIV/0!"}]
[null,null,null,null,null,0,{"$error":"#DIV/0!"}]
[null,null,null,null,null,0,{"$error":"#DIV/0!"}]
[null,null,null,null,null,0,{"$error":"#DIV/0!"}]
[null,null,null,null,null,0,{"$error":"#DIV/0!"}]
[null,null,null,null,null,0,{"$error":"#DIV/0!"}]
[null,null,null,null,null,0,{"$error":"#DIV/0!"}]
[null,null,null,null,null,0,{"$error":"#DIV/0!"}]
[null,null,null,null,null,0,{"$error":"#DIV/0!"}]
[null,null,null,null,null,0,{"$error":"#DIV/0!"}]